fUSD/lending_fUSD_20250223
["ID","MTS","AMOUNT","RATE_DAILY","PERIOD"]
[354168512,1740321044489,-150.0,0.00017399,2]
[354168513,1740321044498,-502.34,0.00017406,2]
[354168514,1740321044507,-504.5,0.00017406,2]
[354168515,1740321044516,-494.64,0.00017406,2]
[354168516,1740321044526,-508.41,0.00017406,2]
[354168517,1740321044537,-500.54,0.00017406,2]
[354168518,1740321044546,-495.21,0.00017406,2]
[354168519,1740321044556,-495.16,0.00017406,2]
[354168520,1740321044566,-160.85655381,0.000175,2]
[354168521,1740321044576,-880.82,0.00017534,2]
[354168522,1740321044585,-1555.08,0.00017534,2]
[354168523,1740321044595,-261.78531297,0.00017562,2]
[354168524,1740321044604,-150.0,0.00017568,2]
[354168525,1740321044615,-150.0,0.00017572,2]
[354168526,1740321044624,-150.0,0.000177,2]
[354168527,1740321044636,-174.7749749,0.00017825,2]
[354168528,1740321044646,-150.0,0.00017855,2]
[354168529,1740321044657,-150.0,0.0001787,2]
[354168530,1740321044667,-150.0,0.00017891,2]
[354168531,1740321044676,-151.68,0.00017906,2]
[354168532,1740321044687,-152.48,0.00017906,2]
[354168533,1740321044697,-150.85,0.00017906,2]
[354168534,1740321044706,-152.0,0.00017906,2]
[354168535,1740321044715,-4040.91182121,0.00018048,3]
[354168536,1740321044725,-150.0,0.0001805,2]
[354168537,1740321044735,-1000.0,0.00018063,2]
[354168538,1740321044744,-2349.7351636,0.00018078,2]
[354168539,1740321044754,-8678.0967878,0.00018079,3]
[354168540,1740321044764,-432.31286095,0.0001808,2]
[354168541,1740321044775,-1000.0,0.00018085,2]
[354168542,1740321044783,-525.3341,0.00018088,2]
[354168543,1740321044791,-500.0,0.00018089,2]
[354168544,1740321044801,-996.90562676,0.00018113,2]
[354168545,1740321044811,-8678.0967878,0.00018114,3]
[354168546,1740321044819,-159.761967,0.0001813,3]
[354168547,1740321044829,-8678.0967878,0.00018168,3]
[354168548,1740321044838,-43390.483939,0.00018175,3]
[354168549,1740321044847,-28315.018852,0.00018175,3]
[354168550,1740321044857,-17356.1935756,0.00018176,3]
[354168551,1740321044866,-14157.509426,0.00018176,3]
[354168552,1740321044875,-34712.3871512,0.00018178,3]
[354168553,1740321044884,-42472.528278,0.00018178,3]
[354168554,1740321044893,-150.76,0.00018178,2]
[354168555,1740321044902,-3240.7972938,0.00018178,2]
[354168556,1740321044911,-1865.2581511,0.00018178,2]
[354168557,1740321044920,-432.3049,0.00018179,2]
[354168558,1740321044930,-241.8114619,0.0001818,2]
[354168559,1740321044939,-2758.2996241,0.00018183,3]
[354168560,1740321044953,-5919.7971637,0.00018183,3]
[354168561,1740321044962,-70000.0,0.00018184,18]
[354168562,1740321044971,-1008.99495767,0.00018184,5]
[354168563,1740321044981,-150.0,0.00018185,2]
[354168564,1740321044991,-26034.2903634,0.00018186,3]
[354168565,1740321045000,-42472.528278,0.00018186,3]
[354168566,1740321045010,-224.46109162,0.00018186,2]
[354168567,1740321045019,-172.23309765,0.00018186,2]
[354168568,1740321045028,-150.0,0.00018187,2]
[354168569,1740321045037,-1000.0,0.00018188,2]
[354168570,1740321045046,-151.0,0.00018188,2]
[354168571,1740321045055,-151.0,0.00018188,2]
[354168572,1740321045064,-151.0,0.00018188,2]
[354168573,1740321045074,-151.0,0.00018188,2]
[354168574,1740321045083,-161.18732624,0.00018188,2]
[354168575,1740321045092,-151.0,0.00018188,2]
[354168576,1740321045101,-151.0,0.00018188,2]
[354168577,1740321045110,-151.0,0.00018188,2]
[354168578,1740321045119,-151.0,0.00018188,2]
[354168579,1740321045128,-151.0,0.00018188,2]
[354168580,1740321045137,-1307.98946,0.00018189,2]
[354168581,1740321045281,-2349.73516359,0.00018189,2]
[354168582,1740321045294,-172.0,0.00018189,3]
[354168583,1740321045305,-500.0,0.00018193,2]
[354168584,1740321045316,-500.0,0.00018193,2]
[354168585,1740321045325,-500.0,0.00018193,2]
[354168586,1740321045335,-500.0,0.00018193,2]
[354168587,1740321045344,-500.0,0.00018193,2]
[354168588,1740321045353,-500.0,0.00018193,2]
[354168589,1740321045363,-500.0,0.00018193,2]
[354168590,1740321045372,-500.0,0.00018193,2]
[354168591,1740321045382,-500.0,0.00018193,2]
[354168592,1740321045391,-500.0,0.00018193,2]
[354168593,1740321045401,-500.0,0.00018193,2]
[354168594,1740321045410,-500.0,0.00018193,2]
[354168595,1740321045419,-500.0,0.00018193,2]
[354168596,1740321045428,-500.0,0.00018193,2]
[354168597,1740321045438,-500.0,0.00018193,2]
[354168598,1740321045448,-500.0,0.00018193,2]
[354168599,1740321045457,-500.0,0.00018193,2]
[354168600,1740321045466,-500.0,0.00018193,2]
[354168601,1740321045476,-500.0,0.00018193,2]
[354168602,1740321045485,-500.0,0.00018193,2]
[354168603,1740321045495,-500.0,0.00018193,2]
[354168604,1740321045504,-500.0,0.00018193,2]
[354168605,1740321045514,-520.0,0.00018193,2]
[354168606,1740321045523,-500.0,0.00018193,2]
[354168607,1740321045533,-500.0,0.00018193,2]
[354168608,1740321045542,-500.0,0.00018193,2]
[354168609,1740321045552,-500.0,0.00018193,2]
[354168610,1740321045563,-500.0,0.00018193,2]
[354168611,1740321045572,-500.0,0.00018193,2]
[354168612,1740321045582,-500.0,0.00018193,2]
[354168613,1740321045591,-500.0,0.00018193,2]
[354168614,1740321045600,-500.0,0.00018193,2]
[354168615,1740321045610,-500.0,0.00018193,2]
[354168616,1740321045619,-500.0,0.00018193,2]
[354168617,1740321045628,-500.0,0.00018193,2]
[354168618,1740321045638,-500.0,0.00018193,2]
[354168619,1740321045648,-500.0,0.00018193,2]
[354168620,1740321045657,-500.0,0.00018193,2]
[354168621,1740321045667,-500.0,0.00018193,2]
[354168622,1740321045675,-500.0,0.00018193,2]
[354168623,1740321045685,-500.0,0.00018193,2]
[354168624,1740321045694,-500.0,0.00018193,2]
[354168625,1740321045703,-500.0,0.00018193,2]
[354168626,1740321045712,-500.0,0.00018193,2]
[354168627,1740321045722,-500.0,0.00018193,2]
[354168628,1740321045732,-500.0,0.00018193,2]
[354168629,1740321045741,-500.0,0.00018193,2]
[354168630,1740321045751,-500.0,0.00018193,2]
[354168631,1740321045761,-500.0,0.00018193,2]
[354168632,1740321045771,-500.0,0.00018193,2]
[354168633,1740321045781,-500.0,0.00018193,2]
[354168634,1740321045791,-500.0,0.00018193,2]
[354168635,1740321045799,-500.0,0.00018193,2]
[354168636,1740321045809,-500.0,0.00018193,2]
[354168637,1740321045819,-500.0,0.00018193,2]
[354168638,1740321045828,-500.0,0.00018193,2]
[354168639,1740321045839,-500.0,0.00018193,2]
[354168640,1740321045848,-500.0,0.00018193,2]
[354168641,1740321045858,-500.0,0.00018193,2]
[354168642,1740321045867,-500.0,0.00018193,2]
[354168643,1740321045876,-896.0,0.00018193,2]
[354168644,1740321045886,-500.0,0.00018193,2]
[354168645,1740321045895,-500.0,0.00018193,2]
[354168646,1740321045904,-500.0,0.00018193,2]
[354168647,1740321045914,-500.0,0.00018193,2]
[354168648,1740321045924,-500.0,0.00018193,2]
[354168649,1740321045934,-500.0,0.00018193,2]
[354168650,1740321045944,-500.0,0.00018193,2]
[354168651,1740321045953,-500.0,0.00018193,2]
[354168652,1740321045963,-500.0,0.00018193,2]
[354168653,1740321045972,-500.0,0.00018193,2]
[354168654,1740321045983,-500.0,0.00018193,2]
[354168655,1740321045992,-500.0,0.00018193,2]
[354168656,1740321046002,-500.0,0.00018193,2]
[354168657,1740321046012,-500.0,0.00018193,2]
[354168658,1740321046021,-500.0,0.00018193,2]
[354168659,1740321046031,-500.0,0.00018193,2]
[354168660,1740321046041,-500.0,0.00018193,2]
[354168661,1740321046051,-500.0,0.00018193,2]
[354168662,1740321046060,-500.0,0.00018193,2]
[354168663,1740321046070,-500.0,0.00018193,2]
[354168664,1740321046079,-500.0,0.00018193,2]
[354168665,1740321046088,-500.0,0.00018193,2]
[354168666,1740321046097,-500.0,0.00018193,2]
[354168667,1740321046107,-500.0,0.00018193,2]
[354168668,1740321046116,-500.0,0.00018193,2]
[354168669,1740321046126,-500.0,0.00018193,2]
[354168670,1740321046135,-500.0,0.00018193,2]
[354168671,1740321046145,-500.0,0.00018193,2]
[354168672,1740321046154,-500.0,0.00018193,2]
[354168673,1740321046163,-500.0,0.00018193,2]
[354168674,1740321046173,-500.0,0.00018193,2]
[354168675,1740321046182,-500.0,0.00018193,2]
[354168676,1740321046191,-500.0,0.00018193,2]
[354168677,1740321046200,-500.0,0.00018193,2]
[354168678,1740321046210,-500.0,0.00018193,2]
[354168679,1740321046220,-500.0,0.00018193,2]
[354168680,1740321046230,-247.1525254,0.00018193,2]
[354168681,1740321046434,-639.0,0.0001616,2]
[354168682,1740321046444,-1318.24645456,0.00017681,2]
[354168683,1740321046455,-1189.33499715,0.00017681,2]
[354168684,1740321046466,-1012.35182404,0.00017681,2]
[354168685,1740321046478,-952.336815,0.00017681,2]
[354168686,1740321046490,-797.2045167,0.00017681,2]
[354168687,1740321046501,-455.84,0.00017681,2]
[354168688,1740321046512,-1904.22084001,0.00017681,2]
[354168689,1740321046524,-680.44,0.00017681,2]
[354168690,1740321046535,-1581.93781418,0.00017681,2]
[354168691,1740321046547,-596.98776518,0.00017681,2]
[354168692,1740321046557,-151.0,0.00018188,2]
[354168693,1740321046566,-252.8474746,0.00018193,2]
[354168694,1740321046575,-500.0,0.00018193,2]
[354168695,1740321046586,-500.0,0.00018193,2]
[354168696,1740321046596,-500.0,0.00018193,2]
[354168697,1740321046605,-466.16476442,0.00018193,2]
[354168698,1740321046617,-33.83523558,0.00018193,2]
[354168699,1740321046626,-500.0,0.00018193,2]
[354168700,1740321046636,-430.66374262,0.00018193,2]
[354168701,1740321046647,-69.33625738,0.00018193,2]
[354168702,1740321046656,-500.0,0.00018193,2]
[354168703,1740321046665,-500.0,0.00018193,2]
[354168704,1740321046674,-500.0,0.00018193,2]
[354168705,1740321046684,-500.0,0.00018193,2]
[354168706,1740321046693,-553.0,0.00018193,2]
[354168707,1740321046703,-500.0,0.00018193,2]
[354168708,1740321046713,-500.0,0.00018193,2]
[354168709,1740321046722,-500.0,0.00018193,2]
[354168710,1740321046734,-500.0,0.00018193,2]
[354168711,1740321046744,-500.0,0.00018193,2]
[354168712,1740321046754,-507.0,0.00018193,2]
[354168713,1740321046764,-262.4776,0.00018193,2]
[354168714,1740321046774,-300.0,0.00018195,2]
[354168715,1740321046783,-7500.0,0.00018196,2]
[354168716,1740321046793,-315.7794,0.00018196,2]
[354168717,1740321046802,-574.62,0.00018203,2]
[354168718,1740321046811,-224.46109158,0.00018222,2]
[354168719,1740321046821,-150.0,0.00018245,2]
[354168720,1740321046831,-150.76,0.00018255,2]
[354168721,1740321046840,-150.76,0.00018255,2]
[354168722,1740321046850,-224.46109158,0.00018257,2]
[354168723,1740321046860,-151.0,0.00018265,2]
[354168724,1740321046869,-151.0,0.00018265,2]
[354168725,1740321046878,-214.816592,0.00018265,2]
[354168726,1740321046887,-151.0,0.00018265,2]
[354168727,1740321046897,-14157.509426,0.00018265,3]
[354168728,1740321046906,-19768.55193088,0.00018266,3]
[354168729,1740321046922,-672.3,0.00018266,3]
[354168730,1740321046933,-414.86736611,0.00018266,3]
[354168731,1740321046949,-151.0,0.00018188,2]
[354168732,1740321046958,-283.63359168,0.00018266,3]
[354168733,1740321046969,-739.34634792,0.00018266,3]
[354168734,1740321046981,-18295.89435052,0.00018266,3]
[354168736,1740321542226,222.0,0.0002,120]
[354168737,1740321548993,1760.90445659,0.0002,120]
[354168738,1740321862919,2129.99,0.0002,120]
[354168750,1740322232397,-849.89684304,0.00011041,2]
[354168751,1740322232410,-221.67706704,0.00011041,2]
[354168752,1740322232419,-690.88454568,0.00015001,2]
[354168753,1740322232427,-500.0,0.000151,2]
[354168754,1740322232436,-522.65,0.00015101,2]
[354168755,1740322232446,-500.0,0.000161,2]
[354168756,1740322232455,-150.00000001,0.00016644,2]
[354168757,1740322232464,-564.49200866,0.00016887,2]
[354168758,1740322232473,-445.97,0.00016924,2]
[354168759,1740322232483,-250.0,0.00016942,2]
[354168760,1740322232492,-150.0,0.00016987,2]
[354168761,1740322232501,-555.609,0.00016987,2]
[354168762,1740322232511,-1009.0,0.00016987,2]
[354168763,1740322232520,-150.0,0.00016987,2]
[354168764,1740322232530,-153.98,0.00017064,2]
[354168765,1740322232539,-258.31,0.00017145,2]
[354168766,1740322232548,-7167.17,0.00017289,2]
[354168767,1740322232557,-1000.0,0.00017324,2]
[354168768,1740322232567,-522.65,0.00017365,2]
[354168769,1740322232576,-1513.77,0.00017479,2]
[354168770,1740322232585,-440.41,0.00017479,2]
[354168771,1740322232594,-440.41,0.000175,2]
[354168772,1740322232603,-440.41,0.000175,2]
[354168773,1740322232612,-12099.8183976,0.000175,2]
[354168774,1740322232621,-386.2444551,0.00017785,2]
[354168775,1740322232630,-436.76,0.000178,2]
[354168776,1740322232639,-776.29095293,0.00017808,7]
[354168777,1740322232649,-18374.44952539,0.00018,2]
[354168778,1740322232736,-31625.55047461,0.00018,2]
[354168779,1740322232745,-976.171,0.00018018,2]
[354168780,1740322232757,-1890.8891,0.00018018,2]
[354168781,1740322232768,-158.6199,0.00018018,2]
[354168782,1740322232777,-2012.4887,0.00018019,2]
[354168783,1740322232787,-517.3708,0.00018019,2]
[354168784,1740322232797,-200.0,0.00018067,2]
[354168785,1740322232807,-261.78531297,0.00018088,2]
[354168786,1740322232816,-2000.0,0.00018118,2]
[354168787,1740322232826,-500.0,0.00018118,2]
[354168788,1740322232835,-200.0,0.00018118,2]
[354168789,1740322232845,-500.0,0.00018119,2]
[354168790,1740322232855,-2000.0,0.00018119,2]
[354168792,1740322232863,-500.0,0.00018119,2]
[354168794,1740322232873,-500.0,0.00018119,2]
[354168796,1740322232882,-200.0,0.00018119,2]
[354168798,1740322232891,-1000.0,0.00018163,2]
[354168800,1740322232900,-355.8813,0.00018163,2]
[354168802,1740322232910,-96481.68583552,0.00018188,2]
[354168804,1740322232919,-1418.016,0.00018188,2]
[354168806,1740322232928,-6418.16464947,0.00018212,2]
[354168808,1740322232937,-2772.9927065,0.00018256,2]
[354168810,1740322232946,-1443.7753862,0.00018263,2]
[354168812,1740322232955,-1089.99122,0.00018265,2]
[354168814,1740322232964,-164.0,0.00018266,3]
[354168816,1740322232973,-151.0,0.00018276,2]
[354168818,1740322232983,-298.59493,0.00018288,7]
[354168820,1740322232992,-500.0,0.0001829,2]
[354168822,1740322233002,-1000.0,0.0001829,2]
[354168824,1740322233011,-8870.60419151,0.000183,2]
[354168826,1740322233020,-593.12125857,0.000183,2]
[354168828,1740322233030,-163.73842076,0.000183,2]
[354168830,1740322233040,-38065.9581,0.00018316,2]
[354168832,1740322233050,-163.73842076,0.0001832,2]
[354168834,1740322233060,-2887.12085537,0.00018336,2]
[354168836,1740322233070,-163.73842076,0.0001834,2]
[354168838,1740322233080,-151.16911818,0.00018348,2]
[354168840,1740322233089,-820.0,0.00018348,2]
[354168842,1740322233099,-500.0,0.00018348,2]
[354168844,1740322233108,-150.71539113,0.00018348,2]
[354168845,1740322233118,-163.73842076,0.0001836,2]
[354168846,1740322233127,-2479.45349597,0.0001837,2]
[354168847,1740322233138,-2479.4534959,0.00018373,2]
[354168848,1740322233147,-820.0,0.00018375,2]
[354168849,1740322233159,-500.0,0.00018375,2]
[354168850,1740322233168,-2479.4534959,0.00018377,2]
[354168851,1740322233178,-163.73842076,0.0001838,2]
[354168852,1740322233188,-2479.4534959,0.0001838,2]
[354168853,1740322233202,-2479.4534959,0.00018383,2]
[354168854,1740322233211,-2479.4534959,0.00018387,2]
[354168855,1740322233221,-2674.7558592,0.0001839,3]
[354168856,1740322233231,-2479.4534959,0.0001839,2]
[354168858,1740322233242,-7500.0,0.0001839,2]
[354168860,1740322233252,-891.5852864,0.00018393,3]
[354168862,1740322233262,-2479.4534959,0.00018393,2]
[354168864,1740322233272,-2479.4534959,0.00018397,2]
[354168866,1740322233281,-891.5852864,0.00018398,3]
[354168868,1740322233291,-551.3592361,0.000184,2]
[354168870,1740322233302,-23698.45469064,0.000184,2]
[354168871,1740322233311,-5800.0,0.000184,2]
[354168873,1740322233322,-2046.67801846,0.000184,2]
[354168875,1740322233331,-518.59005871,0.000184,2]
[354168877,1740322233342,-163.73842076,0.000184,2]
[354168879,1740322233352,-953.4041201,0.000184,2]
[354168882,1740322233364,-2479.4534959,0.000184,2]
[354168884,1740322233374,-17425.00298914,0.000184,2]
[354168886,1740322233383,-591.49653168,0.000184,2]
[354168888,1740322233393,-1067.75533142,0.000184,2]
[354168890,1740322233403,-820.0,0.00018403,2]
[354168891,1740322233412,-500.0,0.00018403,2]
[354168893,1740322233422,-150.0,0.00018418,2]
[354168895,1740322233431,-3240.23582205,0.00018418,2]
[354168897,1740322233441,-204.232926,0.00018418,2]
[354168899,1740322233452,-891.5852864,0.00018422,3]
[354168901,1740322233461,-820.0,0.0001843,2]
[354168903,1740322233472,-500.0,0.0001843,2]
[354168906,1740322233482,-916.0,0.00018432,2]
[354168908,1740322233491,-820.0,0.00018458,2]
[354168910,1740322233501,-500.0,0.00018458,2]
[354168911,1740322233511,-891.5852864,0.00018464,3]
[354168914,1740322233520,-3303.0,0.00018466,2]
[354168916,1740322233530,-500.0,0.00018469,2]
[354168918,1740322233540,-607.45077239,0.00018469,2]
[354168919,1740322233549,-10699.0234368,0.00018469,3]
[354168922,1740322233559,-12834.9593996,0.0001847,3]
[354168924,1740322233568,-12834.9593996,0.00018477,3]
[354168926,1740322233578,-1205.15026183,0.00018478,5]
[354168928,1740322233587,-12834.9593996,0.0001848,3]
[354168930,1740322233596,-89844.7157971,0.0001848,3]
[354168931,1740322233606,-820.0,0.00018485,2]
[354168934,1740322233615,-500.0,0.00018485,2]
[354168936,1740322233625,-428.99512244,0.00018486,2]
[354168938,1740322233635,-1273.4787097,0.00018487,2]
[354168939,1740322233644,-1103.1820332,0.00018487,2]
[354168941,1740322233655,-2451.9134885,0.00018487,2]
[354168943,1740322233665,-2130.8342704,0.00018487,2]
[354168945,1740322233675,-298.59493,0.00018488,7]
[354168947,1740322233685,-269534.147391,0.0001849,3]
[354168949,1740322233695,-342.63612911,0.0001849,2]
[354168951,1740322233705,-150.76,0.0001849,2]
[354168953,1740322233715,-150.76,0.0001849,2]
[354168955,1740322233725,-150.76,0.0001849,2]
[354168957,1740322233735,-150.76,0.0001849,2]
[354168959,1740322233745,-150.76,0.0001849,2]
[354168961,1740322233757,-150.76,0.0001849,2]
[354168963,1740322233766,-150.76,0.0001849,2]
[354168965,1740322233776,-5100.0,0.0001849,28]
[354168967,1740322233787,-5100.0,0.0001849,33]
[354168969,1740322233798,-125419.98599741,0.0001849,3]
[354168992,1740322238334,-463.90240117,0.00016544,2]
[354169003,1740322238603,600.0,0.0002,120]
[354169161,1740322240513,-226.9821445,0.00016544,2]
[354169162,1740322240523,-189.15848853,0.00018256,2]
[354169163,1740322241687,-359.4088,0.00018113,2]
[354169164,1740322241697,-347.47516577,0.00018256,2]
[354169165,1740322241707,-474.4979286,0.00018487,2]
[354169166,1740322241716,-412.3622029,0.00018487,2]
[354169167,1740322241726,-33255.22300903,0.0001849,3]
[354169168,1740322241737,-7255.33872503,0.0001849,3]
[354169169,1740322241746,-151.0,0.0001849,2]
[354169170,1740322241759,-679.921405,0.0001849,2]
[354169171,1740322241770,-679.921405,0.0001849,2]
[354169172,1740322241779,-151.0,0.0001849,2]
[354169173,1740322241788,-151.0,0.0001849,2]
[354169174,1740322241799,-151.0,0.0001849,2]
[354169175,1740322241808,-151.0,0.0001849,2]
[354169176,1740322241817,-151.0,0.0001849,2]
[354169177,1740322241827,-342.63612911,0.0001849,2]
[354169178,1740322241838,-342.63612911,0.0001849,2]
[354169179,1740322241847,-150.76,0.0001849,2]
[354169180,1740322241858,-150.76,0.0001849,2]
[354169181,1740322241867,-150.76,0.0001849,2]
[354169182,1740322241877,-150.76,0.0001849,2]
[354169183,1740322241886,-150.76,0.0001849,2]
[354169184,1740322241896,-150.76,0.0001849,2]
[354169185,1740322241905,-150.76,0.0001849,2]
[354169186,1740322241915,-150.76,0.0001849,2]
[354169187,1740322241925,-150.76,0.0001849,2]
[354169188,1740322241934,-150.76,0.0001849,2]
[354169189,1740322241943,-150.76,0.0001849,2]
[354169190,1740322241953,-150.76,0.0001849,2]
[354169191,1740322241962,-150.76,0.0001849,2]
[354169192,1740322241972,-150.76,0.0001849,2]
[354169193,1740322241982,-150.76,0.0001849,2]
[354169194,1740322241991,-150.76,0.0001849,2]
[354169195,1740322242000,-150.76,0.0001849,2]
[354169196,1740322242010,-150.76,0.0001849,2]
[354169197,1740322242021,-150.76,0.0001849,2]
[354169198,1740322242030,-150.76,0.0001849,2]
[354169199,1740322242040,-150.76,0.0001849,2]
[354169200,1740322242049,-150.76,0.0001849,2]
[354169201,1740322242059,-150.76,0.0001849,2]
[354169202,1740322242068,-150.76,0.0001849,2]
[354169203,1740322242078,-150.76,0.0001849,2]
[354169204,1740322242088,-150.76,0.0001849,2]
[354169205,1740322242098,-150.76,0.0001849,2]
[354169206,1740322242107,-150.76,0.0001849,2]
[354169207,1740322242117,-150.76,0.0001849,2]
[354169209,1740322242127,-150.76,0.0001849,2]
[354169211,1740322242136,-150.76,0.0001849,2]
[354169213,1740322242146,-150.76,0.0001849,2]
[354169215,1740322242155,-150.76,0.0001849,2]
[354169217,1740322242164,-150.76,0.0001849,2]
[354169218,1740322242174,-150.76,0.0001849,2]
[354169219,1740322242183,-150.76,0.0001849,2]
[354169220,1740322242193,-150.76,0.0001849,2]
[354169221,1740322242203,-150.76,0.0001849,2]
[354169222,1740322242212,-150.76,0.0001849,2]
[354169223,1740322242221,-150.76,0.0001849,2]
[354169224,1740322242230,-150.76,0.0001849,2]
[354169225,1740322242239,-150.76,0.0001849,2]
[354169226,1740322242249,-150.76,0.0001849,2]
[354169227,1740322242259,-150.76,0.0001849,2]
[354169228,1740322242268,-150.76,0.0001849,2]
[354169229,1740322242278,-150.76,0.0001849,2]
[354169230,1740322242288,-150.76,0.0001849,2]
[354169231,1740322242299,-150.76,0.0001849,2]
[354169232,1740322242308,-150.76,0.0001849,2]
[354169233,1740322242318,-150.76,0.0001849,2]
[354169234,1740322242327,-150.76,0.0001849,2]
[354169235,1740322242337,-150.76,0.0001849,2]
[354169236,1740322242347,-150.76,0.0001849,2]
[354169237,1740322242356,-150.76,0.0001849,2]
[354169238,1740322242366,-150.76,0.0001849,2]
[354169239,1740322242375,-150.76,0.0001849,2]
[354169240,1740322242385,-150.76,0.0001849,2]
[354169241,1740322242394,-150.76,0.0001849,2]
[354169242,1740322242404,-150.76,0.0001849,2]
[354169243,1740322242414,-150.76,0.0001849,2]
[354169244,1740322242423,-150.76,0.0001849,2]
[354169245,1740322242433,-150.76,0.0001849,2]
[354169246,1740322242442,-500.0,0.00018499,2]
[354169247,1740322242452,-999.0,0.00018499,2]
[354169248,1740322242462,-476.78741777,0.00018499,2]
[354169249,1740322242471,-956.51008057,0.000185,5]
[354169250,1740322242483,-311.6,0.000185,5]
[354169251,1740322242494,-1135.96567531,0.000185,5]
[354169252,1740322242504,-864.80399718,0.000185,5]
[354169253,1740322242516,-5495.34090266,0.000185,5]
[354169263,1740322243427,-783.24505453,0.0001839,2]
[354169264,1740322243436,-2441.49257263,0.000185,5]
[354169265,1740322243449,-1942.2,0.000185,5]
[354169266,1740322243544,-571.10667551,0.000185,5]
[354169267,1740322243555,-652.519868,0.000185,5]
[354169268,1740322243569,-17155.65647252,0.000185,5]
[354169269,1740322243580,-48831.04075349,0.000185,5]
[354169270,1740322243600,-152.6,0.00017044,2]
[354169271,1740322243609,-419.61,0.000185,5]
[354169272,1740322243620,-99503.00103411,0.000185,5]
[354169273,1740322243631,-337.27249606,0.000185,5]
[354169286,1740322246286,-509.34,0.00017747,2]
[354169287,1740322246299,-7597.49919836,0.000184,2]
[354169288,1740322246308,-35747.9061228,0.000185,5]
[354169289,1740322246482,-6450.0,0.000185,5]
[354169319,1740322292029,38306.0,0.000199,120]
[354169320,1740322603966,1094.48418212,0.00020354,120]
[354169324,1740322655074,163.76,8.767e-05,2]
[354169325,1740322740532,550.0,0.0001,2]
[354169326,1740323283499,10000.0,0.00020356,120]
[354169327,1740323318436,10000.0,0.00020356,120]
[354169366,1740323431670,-164.947541,0.00010958,2]
[354169368,1740323431680,-159.251067,0.00010958,2]
[354169370,1740323431689,-161.938231,0.00010958,2]
[354169372,1740323431701,-160.05969,0.00010958,2]
[354169374,1740323431710,-159.251067,0.00011041,2]
[354169376,1740323431720,-161.938231,0.00011041,2]
[354169378,1740323431730,-1074.98066497,0.00011041,2]
[354169380,1740323431739,-159.251067,0.00011123,2]
[354169382,1740323431749,-159.251067,0.00011205,2]
[354169384,1740323431759,-161.938231,0.00011205,2]
[354169386,1740323431768,-159.251067,0.00011287,2]
[354169388,1740323431778,-161.938231,0.00011287,2]
[354169390,1740323431788,-600.0,0.00012,2]
[354169392,1740323431798,-150.0,0.00012054,2]
[354169395,1740323431808,-500.0,0.00012054,2]
[354169397,1740323431818,-150.0,0.00012054,2]
[354169399,1740323431827,-1268.883614,0.00013384,2]
[354169401,1740323431837,-503.18,0.00015309,2]
[354169403,1740323431847,-163.76,0.00015516,2]
[354169405,1740323431857,-502.11,0.00015628,2]
[354169407,1740323431867,-319.0,0.000171,2]
[354169409,1740323431876,-184.29,0.0001717,2]
[354169411,1740323431885,-340.87639745,0.00017188,2]
[354169413,1740323431895,-258.31,0.0001726,2]
[354169415,1740323431905,-618.59383357,0.00017343,2]
[354169423,1740323432153,-381.40616643,0.00017343,2]